bitfinex-derivatives/quotes_ETHF0:USTF0_20250614
["timestamp","ask_amount","ask_price","bid_price","bid_amount"]
[1749934967771,0.79689,2508.8,2508.7,30.73]
[1749934968982,0.6321,2509.0,2508.7,30.73]
[1749934969282,0.79683,2509.0,2508.8,0.79687]
[1749934969482,0.79683,2509.0,2508.9,24.399]
[1749934970777,6.99213,2509.0,2508.7,24.399]
[1749934970975,3.2078,2508.8,2508.7,24.399]
[1749934971176,0.79698,2508.5,2508.4,0.6483]
[1749934971376,2.69762268,2508.7,2508.1,0.7971]
[1749934971680,2.69762268,2508.7,2508.2,24.397]
[1749934971681,0.79708,2508.3,2508.2,24.397]
[1749934972177,0.79708,2508.3,2508.2,25.19408]
[1749934972783,0.79708,2508.3,2508.2,24.397]
[1749934973082,0.79708,2508.3,2508.2,25.19408]
[1749934973284,0.79708,2508.3,2508.2,24.397]
[1749934975486,0.79708,2508.3,2508.2,25.19408]
[1749934976283,0.79708,2508.3,2508.2,24.397]
[1749934976989,0.79709,2508.2,2508.0,6.328]
[1749934977184,0.79709,2508.2,2508.1,25.19309]
[1749934977787,0.79707,2508.3,2508.2,0.79707]
[1749934978296,0.79708,2508.3,2508.2,0.79707]
[1749934980390,0.79708,2508.2,2508.1,24.396]
[1749934980692,0.79708,2508.2,2508.1,25.19311]
[1749934980894,0.79711,2508.1,2508.0,6.328]
[1749934981094,0.79714,2508.0,2507.9,3.8874]
[1749934981284,0.79714,2508.0,2507.9,28.2834]
[1749934981486,0.79714,2508.0,2507.9,3.2078]
[1749934982292,0.7972,2507.8,2507.7,0.00597705]
[1749934984393,5.5896244,2508.6,2507.7,3.21377705]
[1749934984600,3.2078,2508.3,2507.8,6.9923]
[1749934984792,0.79717,2507.9,2507.8,6.326]
[1749934984990,0.79717,2507.9,2507.8,30.723]
[1749934985185,1.47297,2507.9,2507.8,24.397]
[1749934988292,1.47297,2507.9,2507.8,25.1942]
[1749934988692,1.47297,2507.9,2507.8,24.397]
[1749934989291,1.47297,2507.9,2507.8,25.1942]
[1749934990197,1.47297,2507.9,2507.8,24.397]
[1749934991300,1.47297,2507.9,2507.8,25.1942]
[1749934991899,0.06809268,2508.0,2507.9,0.79717]
[1749934992303,0.06809268,2508.0,2507.9,2.71587]
[1749934992907,0.86523268,2508.0,2507.9,2.71587]
[1749934993900,0.86523268,2508.0,2507.9,1.9187]
[1749934994310,0.7972,2507.8,2507.7,3.21377705]
[1749934994609,0.7972,2507.8,2507.7,28.41001705]
[1749934994803,0.7972,2507.8,2507.7,29.68641705]
[1749934995005,0.06809268,2508.0,2507.7,28.88917705]
[1749934995200,0.06809268,2508.0,2507.9,0.79717]
[1749934995599,3.8907,2508.7,2508.3,0.79702]
[1749934995803,1.09909105,2508.6,2508.3,24.399]
[1749934996005,3.2078,2508.7,2508.5,0.79696]
[1749934996609,3.2078,2508.7,2508.6,25.19595]
[1749934997207,4.00472,2508.7,2508.6,25.19595]
[1749934997503,3.2078,2508.7,2508.6,25.19595]
[1749934997914,4.00472,2508.7,2508.6,25.19595]
[1749934998213,4.00472,2508.7,2508.6,24.399]
[1749934998406,4.00472,2508.7,2508.6,25.19595]
[1749934998714,0.79708,2508.2,2508.1,3.2078]
[1749934998910,0.79708,2508.2,2508.1,24.397]
[1749935000314,3.2078,2508.2,2507.7,24.11997705]
[1749935000516,0.7972,2507.8,2507.7,24.91721705]
[1749935000716,0.7972,2507.8,2507.7,55.64018705]
[1749935001119,0.79719,2507.9,2507.7,54.84297705]
[1749935001413,0.79719,2507.9,2507.8,0.7972]
[1749935001812,0.79715,2508.0,2507.9,0.79716]
[1749935002120,0.653,2508.4,2507.9,27.6048]
[1749935002309,1.10015073,2508.3,2508.1,0.79709]
[1749935002508,0.79705,2508.3,2508.2,25.19808]
[1749935002704,1.89712392,2508.3,2508.2,25.19808]
[1749935003214,1.89712392,2508.3,2508.2,24.401]
[1749935003613,1.89721568,2508.3,2508.2,24.401]
[1749935003814,1.89721568,2508.3,2508.2,25.19808]
[1749935003815,1.10016568,2508.3,2508.2,25.19808]
[1749935004014,1.89721568,2508.3,2508.2,25.19808]
[1749935004214,1.89721568,2508.3,2508.2,24.401]
[1749935004515,1.89721568,2508.3,2508.2,28.40588]
[1749935004716,1.89721568,2508.3,2508.2,27.6088]
[1749935004917,1.89721568,2508.3,2508.2,24.401]
[1749935005523,1.10016568,2508.3,2507.9,3.2078]
[1749935005822,0.79714,2508.0,2507.9,27.6048]
[1749935006418,3.2078,2508.1,2507.7,24.11997705]
[1749935006619,0.7972,2507.8,2507.7,30.44597705]
[1749935006820,0.7972,2507.8,2507.7,6.33197705]
[1749935007014,0.7972,2507.8,2507.7,30.73497705]
[1749935009426,0.7972,2507.8,2507.7,31.53221705]
[1749935010328,0.7972,2507.8,2507.7,30.73497705]
[1749935010928,0.7972,2507.8,2507.7,31.53221705]
[1749935011129,3.9842,2508.1,2507.9,0.79715]
[1749935011130,0.79716,2508.0,2507.9,0.79715]
[1749935011430,1.89791648,2508.0,2507.9,0.79715]
[1749935013332,1.10075648,2508.0,2507.9,0.79715]
[1749935013635,3.2078,2508.4,2508.3,0.79705]
[1749935013827,4.30848149,2508.4,2508.3,25.19505]
[1749935014731,3.2078,2508.4,2508.3,25.19505]
[1749935015028,4.30865811,2508.4,2508.3,25.19505]
[1749935015227,3.2078,2508.4,2508.3,25.19505]
[1749935015426,3.8837,2508.7,2508.6,0.79695]
[1749935015619,1.10102246,2508.7,2508.6,25.19495]
[1749935015825,0.79686,2508.9,2508.6,24.398]
[1749935016025,0.6902,2509.0,2508.8,0.79686]
[1749935016221,4.00461,2509.1,2508.9,24.4]
[1749935016426,3.2078,2509.1,2509.0,0.79682]
[1749935018533,0.79682,2509.0,2508.9,31.52285]
[1749935018831,3.2078,2509.1,2508.9,24.398]
[1749935019234,0.79682,2509.0,2508.9,24.398]
[1749935019733,3.2078,2509.1,2508.9,25.19483]
[1749935020432,0.79682,2509.0,2508.9,25.19483]
[1749935021332,0.79682,2509.0,2508.9,28.40265]
[1749935022234,0.79682,2509.0,2508.9,27.6058]
[1749935023339,0.79682,2509.0,2508.9,28.40265]
[1749935024035,0.79708,2508.2,2508.1,9.5328]
[1749935024238,0.79717,2507.9,2507.8,6.9792]
[1749935024439,0.7972,2507.8,2507.7,0.00597705]
[1749935024640,0.7972,2507.8,2507.7,24.44797705]
[1749935025235,3.2078,2507.9,2507.7,24.44797705]
[1749935025538,0.7972,2507.8,2507.7,24.44797705]
[1749935025738,4.00499,2507.9,2507.7,25.24519705]
[1749935026242,0.06809268,2508.0,2507.9,0.79717]
[1749935026539,0.06809268,2508.0,2507.9,1.46317]
[1749935026742,0.06809268,2508.0,2507.9,2.79237]
[1749935027242,0.06809268,2508.0,2507.9,1.9952]
[1749935027741,0.06809268,2508.0,2507.9,2.79237]
[1749935028234,0.86523268,2508.0,2507.9,2.79237]
[1749935028642,0.06809268,2508.0,2507.9,2.79237]
[1749935029038,0.7971,2508.2,2508.0,0.79713]
[1749935029241,0.7971,2508.2,2508.0,26.49943]
[1749935029438,0.7971,2508.2,2508.0,27.18223]
[1749935029640,0.7971,2508.2,2508.1,0.79711]
[1749935030035,4.00487,2508.3,2508.1,0.79711]
[1749935030529,0.79708,2508.2,2508.1,0.79711]
[1749935030940,0.79708,2508.2,2508.0,26.3851]
[1749935030941,3.2078,2508.3,2508.0,26.3851]
[1749935031843,3.2078,2508.3,2508.0,32.7111]
[1749935032639,3.2078,2508.3,2508.0,33.50824]
[1749935032640,0.7971,2508.2,2508.0,33.50824]
[1749935032834,0.7971,2508.2,2508.1,0.79711]
[1749935033244,4.00487,2508.3,2508.1,0.79711]
[1749935033537,4.00485,2508.3,2508.2,0.79708]
[1749935033844,3.2078,2508.3,2508.2,0.79708]
[1749935034342,0.79709,2508.2,2508.1,0.79709]
[1749935034543,4.00487,2508.3,2508.2,0.79708]
[1749935036043,4.00485,2508.3,2508.2,24.414]
[1749935037342,0.79711,2508.1,2508.0,7.0088]
[1749935037638,0.79714,2508.0,2507.9,0.666]
[1749935037845,0.79714,2508.0,2507.9,31.407]
[1749935038046,0.79714,2508.0,2507.9,32.20417]
[1749935038744,0.79713,2508.1,2508.0,0.79712]
[1749935039649,0.79714,2508.0,2507.9,32.20415]
[1749935039849,0.79714,2508.0,2507.9,7.0]
[1749935040038,0.79714,2508.0,2507.9,31.406]
[1749935040542,0.79714,2508.0,2507.9,32.20317]
[1749935040742,0.79714,2508.0,2507.9,31.53717]
[1749935041946,0.79714,2508.0,2507.9,0.79717]
[1749935042151,0.7972,2507.8,2507.7,0.69997705]
[1749935042351,0.7972,2507.8,2507.7,24.40997705]
[1749935043050,0.7972,2507.8,2507.7,25.20521705]
[1749935043652,0.73769268,2507.9,2507.8,0.7972]
[1749935044347,1.46677,2507.9,2507.8,1.4635]
[1749935044549,0.6696,2507.9,2507.8,1.4635]
[1749935045047,1.46677,2507.9,2507.8,0.6663]
[1749935045248,1.46677,2507.9,2507.8,25.0693]
[1749935045447,1.46677,2507.9,2507.8,24.403]
[1749935045656,0.7972,2507.8,2507.7,0.00597705]
[1749935045849,0.7972,2507.8,2507.7,24.40697705]
[1749935046654,0.7972,2507.8,2507.7,25.20421705]
[1749935047455,1.4668,2507.9,2507.8,0.7972]
[1749935047653,0.7972,2507.8,2507.7,24.40697705]
[1749935047846,0.7972,2507.8,2507.7,0.00597705]
[1749935048046,0.7972,2507.8,2507.7,24.40397705]
[1749935049351,0.7972,2507.8,2507.7,0.80321705]
[1749935049551,0.7972,2507.8,2507.7,25.20121705]
[1749935050251,0.7972,2507.8,2507.7,0.80321705]
[1749935050452,0.7972,2507.8,2507.7,24.40497705]
[1749935050653,0.7972,2507.8,2507.7,25.20221705]
[1749935051256,1.4668,2507.9,2507.8,0.7972]
[1749935052254,0.7972,2507.8,2507.7,25.82928705]
[1749935056077,4.07304268,2508.0,2507.9,0.79717]
[1749935056361,5.17570344,2508.0,2507.9,0.79717]
[1749935056565,5.17570344,2508.0,2507.8,0.79719]
[1749935056566,0.79718,2507.9,2507.8,0.79719]
[1749935057063,0.7972,2507.8,2507.7,2.79099705]
[1749935057265,0.7972,2507.9,2507.8,0.79719]
[1749935057957,4.07305268,2508.0,2507.9,0.79717]
[1749935058159,4.37854503,2508.0,2507.9,0.79717]
[1749935058367,1.17074503,2508.0,2507.9,0.79717]
[1749935058863,0.06809268,2508.0,2507.9,0.79717]
[1749935059258,0.79719,2507.9,2507.8,6.335]
[1749935059459,2.53995412,2507.9,2507.8,30.787]
[1749935060262,0.7972,2507.8,2507.7,6.96807705]
[1749935060470,0.7972,2507.8,2507.7,32.22031705]
[1749935061668,1.4373,2507.9,2507.8,0.7972]
[1749935061968,0.7972,2507.8,2507.7,32.22028705]
[1749935062162,0.7972,2507.8,2507.7,25.88428705]
[1749935062661,0.7972,2507.8,2507.7,0.63307705]
[1749935062865,0.79733,2507.4,2507.3,7.0099]
[1749935063170,0.79743,2507.1,2507.0,6.335]
[1749935063466,5.1358,2507.3,2506.8,7.7814]
[1749935063669,0.79743,2507.1,2507.0,24.458]
[1749935063873,1.89991171,2507.1,2507.0,24.458]
[1749935064084,1.10248171,2507.1,2506.8,1.45237705]
[1749935064277,0.6479,2507.0,2506.9,25.25749]
[1749935064767,1.44536,2507.0,2506.9,25.25749]
[1749935065371,4.66555705,2507.3,2507.2,0.7974]
[1749935065563,4.31498797,2507.3,2507.2,25.2584]
[1749935066168,0.00597705,2507.3,2507.2,31.6244]
[1749935071967,2.3818244,2508.4,2508.0,0.79714]
[1749935072169,1.10136922,2508.3,2508.2,0.79708]
[1749935072364,0.79705,2508.3,2508.2,24.475]
[1749935072769,1.89824685,2508.3,2508.2,24.475]
[1749935073169,0.79705,2508.3,2508.2,24.475]
[1749935073369,0.79705,2508.3,2508.0,7.65837705]
[1749935073370,0.79705,2508.3,2508.0,0.00597705]
[1749935073574,0.79711,2508.1,2508.0,0.00597705]
[1749935073873,1.89803157,2508.1,2508.0,0.00597705]
[1749935074069,3.23213157,2508.1,2508.0,0.00597705]
[1749935075784,1.89803157,2508.1,2508.0,0.00597705]
[1749935076081,4.6353,2508.2,2508.1,0.79711]
[1749935076276,1.73113419,2508.2,2508.1,0.79711]
[1749935076485,0.86516268,2508.3,2508.2,0.79708]
[1749935076778,1.89775196,2508.3,2508.2,0.79708]
[1749935076977,1.89775196,2508.3,2508.2,25.27908]
[1749935076978,1.10068196,2508.3,2508.2,25.27908]
[1749935077183,0.6611,2508.4,2508.3,0.79705]
[1749935077380,0.79705,2508.3,2508.2,26.53646]
[1749935077579,3.21377705,2508.5,2508.4,0.79701]
[1749935077779,4.31425071,2508.5,2508.4,0.79701]
[1749935077987,3.21377705,2508.5,2508.4,0.79701]
[1749935079378,0.00597705,2508.5,2508.4,7.16201]
[1749935080986,0.80295705,2508.5,2508.4,7.16201]
[1749935081286,0.80295705,2508.5,2508.4,6.365]
[1749935081480,0.79701,2508.4,2508.3,1.2574]
[1749935081680,0.79701,2508.4,2508.3,31.64005]
[1749935081980,1.43461,2508.4,2508.3,31.64005]
[1749935082281,0.80296705,2508.5,2508.4,0.79701]
[1749935083489,0.00597705,2508.5,2508.4,0.79701]
[1749935084380,0.80295705,2508.5,2508.4,0.79701]
[1749935084580,0.00597705,2508.5,2508.4,0.79701]
[1749935086291,0.80295705,2508.5,2508.4,0.79701]
[1749935087693,0.79701,2508.4,2508.3,31.64002]
[1749935088285,1.99254,2508.4,2508.0,0.00597705]
[1749935088593,0.79711,2508.1,2508.0,0.00597705]
[1749935088792,1.89450776,2508.1,2508.0,0.00597705]
[1749935089086,0.79723,2507.8,2507.5,24.499]
[1749935089293,9.40439776,2508.1,2507.5,24.499]
[1749935089294,4.00504,2507.7,2507.6,0.79727]
[1749935089487,3.2078,2507.7,2507.6,0.79727]
[1749935089680,3.2078,2507.7,2507.6,2.19057]
[1749935090488,0.79721,2507.8,2507.7,0.79724]
[1749935091189,4.00499,2507.9,2507.7,0.79724]
[1749935091389,4.00499,2507.9,2507.8,25.3052]
[1749935091888,3.2078,2507.9,2507.8,25.3052]
[1749935093487,4.00497,2507.9,2507.8,25.3052]
[1749935093686,4.65277,2507.9,2507.8,25.3052]
[1749935094497,3.8556,2507.9,2507.8,25.3052]
[1749935095198,4.65277,2507.9,2507.8,24.508]
[1749935095497,4.65277,2507.9,2507.8,25.3052]
[1749935095897,4.65277,2507.9,2507.8,24.508]
[1749935096298,4.65277,2507.9,2507.8,25.3052]
[1749935098596,4.65277,2507.9,2507.8,24.508]
[1749935099894,4.65277,2507.9,2507.8,25.3052]
[1749935100100,3.8556,2507.9,2507.8,25.3052]
[1749935100604,4.65277,2507.9,2507.8,24.508]
[1749935102604,0.7972,2507.8,2507.7,0.6768]
[1749935102802,0.7973,2507.5,2507.4,0.00597705]
[1749935103005,4.0051,2507.5,2507.4,0.00597705]
[1749935103510,3.2078,2507.5,2507.4,0.80330705]
[1749935103703,4.0051,2507.5,2507.4,0.80330705]
[1749935104401,3.2078,2507.5,2507.4,0.80330705]
[1749935105000,0.79727,2507.7,2507.6,0.79726]
[1749935105308,0.79727,2507.7,2507.5,0.79728]
[1749935105504,3.8556,2507.9,2507.4,0.00597705]
[1749935105708,4.65279,2507.9,2507.7,0.79724]
[1749935106007,4.65279,2507.9,2507.6,0.79725]
[1749935106008,3.8556,2507.9,2507.6,0.79725]
[1749935106206,0.79725,2507.7,2507.6,0.79727]
[1749935107308,0.79722,2507.8,2507.7,0.79722]
[1749935108508,3.27589268,2507.9,2507.8,0.7972]
[1749935109309,4.493,2508.4,2508.3,0.79705]
[1749935109506,5.73402387,2508.4,2508.3,0.79705]
[1749935109811,3.8371,2508.4,2508.3,0.79705]
[1749935110006,4.93700393,2508.4,2508.3,0.79705]
[1749935110204,4.93700393,2508.4,2508.1,1.9194]
[1749935110506,0.79705,2508.3,2508.1,1.9194]
[1749935110707,4.63412,2508.4,2508.3,0.79705]
[1749935110908,5.73422931,2508.4,2508.3,0.79705]
[1749935111105,0.79705,2508.3,2508.2,0.79706]
[1749935111305,0.79708,2508.2,2508.1,2.71648]
[1749935111611,0.79708,2508.2,2508.1,0.6318]
[1749935111809,1.99264,2508.3,2507.7,4.5921]
[1749935112007,0.79717,2507.9,2507.8,0.6585]
[1749935112204,0.79716,2508.0,2507.9,0.79717]
[1749935112413,0.06809268,2507.9,2507.8,1.45568]
[1749935112908,0.86526268,2507.9,2507.7,4.00501]
[1749935113113,1.50196268,2507.9,2507.7,28.48701]
[1749935114018,0.7972,2507.8,2507.7,28.48701]
[1749935114915,0.70479268,2507.9,2507.8,0.7972]
[1749935115115,0.06809268,2507.9,2507.8,0.7972]
[1749935115314,0.86526268,2507.9,2507.8,2.0751]
[1749935115613,0.7972,2507.8,2507.7,4.00502]
[1749935115816,0.7972,2507.8,2507.7,28.47802]
[1749935116003,0.7972,2507.8,2507.7,3.2078]
[1749935116205,0.7972,2507.8,2507.7,27.6808]
[1749935117020,0.7972,2507.8,2507.7,28.47804]
[1749935117416,4.30837451,2507.8,2507.6,24.472]
[1749935117610,0.7973,2507.5,2507.4,0.00597705]
[1749935117817,0.7973,2507.5,2507.4,0.80329705]
[1749935118215,0.79728,2507.6,2507.5,0.79727]
[1749935118412,1.8980875,2507.6,2507.5,4.00507]
[1749935118723,1.10052585,2507.6,2507.5,4.00507]
[1749935118913,0.79723,2507.8,2507.7,0.79724]
[1749935119113,1.89772574,2507.8,2507.7,0.79724]
[1749935119423,1.89769574,2507.8,2507.7,0.79724]
[1749935119809,1.10049574,2507.8,2507.7,0.79724]
[1749935120115,3.2078,2508.1,2507.7,0.79724]
[1749935120317,3.2078,2508.1,2508.0,0.79714]
[1749935120520,3.2078,2508.4,2508.1,1.99278]
[1749935120723,0.80296705,2508.5,2508.4,0.79701]
[1749935120924,1.10659347,2508.5,2508.4,0.79701]
[1749935121319,0.00597705,2508.5,2508.4,0.79701]
[1749935121515,0.00597705,2508.5,2508.4,7.17501]
[1749935121919,0.00597705,2508.5,2508.4,10.38281]
[1749935122427,3.2078,2509.1,2508.5,1.99242]
[1749935122620,3.2078,2509.1,2508.8,0.79687]
[1749935122927,0.79679,2509.2,2509.0,0.79682]
[1749935123125,1.099094,2509.1,2508.9,27.30224]
[1749935123320,0.6665,2509.4,2508.9,26.5054]
[1749935123516,1.89498139,2509.3,2509.0,0.79682]
[1749935123824,1.09823139,2509.2,2509.0,2.12792]
[1749935124118,0.79675,2509.3,2509.0,1.3311]
[1749935124428,1.46918705,2509.4,2509.2,0.79675]
[1749935124724,0.67247705,2509.4,2509.0,1.3311]
[1749935124924,0.00597705,2509.4,2509.3,0.79673]
[1749935125622,0.00597705,2509.4,2509.3,4.00453]
[1749935125820,0.00597705,2509.4,2509.3,5.38853]
[1749935127522,2.678,2510.1,2509.8,0.79655]
[1749935127829,1.2998,2510.1,2509.7,24.486]
[1749935128130,2.0963,2510.1,2509.9,0.79652]
[1749935128516,1.2998,2510.1,2509.7,25.1761]
[1749935128728,0.79657,2509.8,2509.7,26.5171]
[1749935128928,0.79653,2510.0,2509.8,0.79656]
[1749935129225,0.79655,2509.9,2509.7,25.1761]
[1749935129425,0.79653,2510.0,2509.9,0.79653]
[1749935129928,0.79653,2510.0,2509.7,26.5171]
[1749935130129,0.79653,2510.0,2509.8,0.79655]
[1749935130328,0.79654,2509.9,2509.7,27.31368]
[1749935130629,1.99151,2509.7,2509.1,10.38257]
[1749935130829,0.6618,2509.6,2509.1,34.1008]
[1749935131129,1.45845,2509.6,2509.5,0.79666]
[1749935131332,1.45845,2509.6,2509.4,0.79667]
[1749935131727,0.6618,2509.6,2509.4,0.79667]
[1749935131929,0.79672,2509.4,2509.3,0.79673]
[1749935132328,0.79668,2509.5,2509.3,0.79673]
[1749935132528,0.7967,2509.4,2509.3,0.79673]
[1749935133133,0.79668,2509.5,2509.3,0.79673]
[1749935133333,0.6618,2509.6,2509.1,35.4755]
[1749935133634,0.6618,2509.6,2509.5,0.79666]
[1749935134727,0.79657,2509.8,2509.7,0.79658]
[1749935134933,0.7966,2509.7,2509.5,1.2872]
[1749935135127,0.7966,2509.7,2509.5,2.08385]
[1749935135327,0.79663,2509.6,2509.5,2.08385]
[1749935135528,0.79662,2509.7,2509.6,0.79663]
[1749935135734,0.06809268,2509.6,2509.5,1.2872]
[1749935136337,0.06809268,2509.6,2509.5,2.08386]
[1749935136633,0.06809268,2509.6,2509.5,8.46086]
[1749935137032,0.06809268,2509.6,2509.5,9.09156]
[1749935139630,0.00597705,2510.3,2509.7,1.99149]
[1749935139631,0.80240705,2510.3,2509.7,1.99149]
[1749935139936,0.79649,2510.1,2510.0,0.7965]
[1749935140436,0.79654,2509.9,2509.8,0.6397]
[1749935140736,0.79654,2509.9,2509.8,24.502]
[1749935141334,0.79667,2509.5,2509.4,31.67867]
[1749935141531,3.89842,2510.0,2509.4,31.67867]
[1749935141532,5.1191,2509.8,2509.4,30.882]
[1749935141732,1.43539,2509.8,2509.7,0.7966]
[1749935141933,0.6388,2509.8,2509.4,30.882]
[1749935142139,0.7967,2509.5,2509.4,6.377]
[1749935142339,0.7967,2509.5,2509.4,31.6797]
[1749935143040,0.6346,2509.6,2509.4,31.6797]
[1749935143041,1.49935268,2509.6,2509.5,0.79666]
[1749935143943,1.49932268,2509.6,2509.5,0.79666]
[1749935145142,0.79666,2509.5,2509.4,31.67968]
[1749935145342,0.79666,2509.5,2509.4,30.883]
[1749935145941,0.79666,2509.5,2509.4,31.6797]
[1749935146639,0.70269268,2509.6,2509.5,0.79666]
[1749935147242,1.49932268,2509.6,2509.5,0.79666]
[1749935149348,1.49932268,2509.6,2509.5,1.48656]
[1749935150048,1.43123,2509.6,2509.5,1.48656]
[1749935150252,2.53016736,2509.6,2509.5,1.48656]
[1749935150848,1.73353736,2509.6,2509.5,1.48656]
[1749935151049,1.43123,2509.6,2509.5,1.48656]
[1749935151244,1.73422124,2509.6,2509.5,1.48656]
[1749935151449,1.43123,2509.6,2509.5,1.48656]
[1749935152242,2.53158493,2509.6,2509.5,1.48656]
[1749935153039,2.53158493,2509.6,2509.5,0.6899]
[1749935153452,2.53158493,2509.6,2509.5,1.48656]
[1749935156745,1.73495493,2509.6,2509.5,1.48656]
[1749935157045,2.53158493,2509.6,2509.5,1.48656]
[1749935157247,1.73495493,2509.6,2509.5,1.48656]
[1749935157850,2.53158493,2509.6,2509.5,1.48656]
[1749935158349,2.53158493,2509.6,2509.5,25.93256]
[1749935158752,1.73495493,2509.6,2509.5,25.93256]
[1749935159652,2.53158493,2509.6,2509.5,1.48656]
[1749935159856,2.53158493,2509.6,2509.5,25.91956]
[1749935160151,1.73495493,2509.6,2509.2,3.2078]
[1749935160346,1.73495493,2509.6,2509.1,0.6574]
[1749935160347,0.79676,2509.2,2509.1,0.6574]
[1749935160656,0.79679,2509.1,2509.0,30.466]
[1749935160849,0.79679,2509.1,2508.9,3.21377705]
[1749935160850,0.79682,2509.0,2508.9,3.21377705]
[1749935161057,5.10593458,2509.0,2508.9,0.00597705]
[1749935161356,0.79701,2508.4,2508.3,9.5648]
[1749935161651,0.79711,2508.1,2508.0,30.857]
[1749935161852,0.79714,2508.0,2507.9,3.2078]
[1749935162153,0.7972,2507.8,2507.7,6.357]
[1749935162360,0.7972,2507.8,2507.7,30.856]
[1749935162952,0.7972,2507.8,2507.7,31.65324]
[1749935163256,0.00597705,2508.0,2507.7,30.856]
[1749935163551,0.79724,2507.7,2507.6,3.2078]
[1749935163856,0.79724,2507.7,2507.6,27.7138]
[1749935164059,0.79722,2507.8,2507.6,27.7138]
[1749935164246,0.79724,2507.7,2507.6,27.7138]
[1749935164454,0.79724,2507.7,2507.6,28.51107]
[1749935164646,1.30117705,2508.0,2507.6,28.51107]
[1749935164647,0.79723,2507.8,2507.6,28.51107]
[1749935164852,0.79724,2507.7,2507.6,27.7138]
[1749935165352,1.30117705,2508.0,2507.6,27.7138]
[1749935165553,0.79723,2507.8,2507.6,28.51105]
[1749935166453,0.00597705,2508.0,2507.9,0.79717]
[1749935166653,0.80311705,2508.0,2507.9,24.529]
[1749935167457,0.79727,2507.6,2507.5,0.00597705]
[1749935168759,1.46287,2507.6,2507.5,0.00597705]
[1749935169660,0.79727,2507.6,2507.5,0.00597705]
[1749935169854,0.6786,2507.8,2507.5,24.55097705]
[1749935170161,1.47582,2507.8,2507.7,0.79724]
[1749935171054,0.6786,2507.8,2507.7,0.79724]
[1749935171254,0.00597705,2508.0,2507.8,0.79719]
[1749935171457,0.79718,2507.9,2507.8,0.79719]
[1749935172461,0.00597705,2508.0,2507.6,5.1892]
[1749935172657,0.79724,2507.7,2507.6,5.98644]
[1749935173163,0.79722,2507.8,2507.7,0.79722]
[1749935174353,0.80313705,2508.0,2507.9,0.79717]
[1749935174555,0.00597705,2508.0,2507.9,0.79717]
[1749935175360,0.00597705,2508.0,2507.9,25.34017]
[1749935175562,0.00597705,2508.0,2507.9,26.65457]
[1749935176160,0.79712,2508.1,2507.9,35.4262]
[1749935176366,0.79712,2508.1,2508.0,0.79712]
[1749935176864,0.79712,2508.1,2508.0,1.48432]
[1749935178365,0.79714,2508.0,2507.9,3.2078]
[1749935178766,0.79714,2508.0,2507.9,4.00497]
[1749935179364,0.79714,2508.0,2507.9,0.79717]
[1749935179566,0.79717,2507.9,2507.8,24.534]
[1749935180666,0.7972,2507.8,2507.7,7.15724]
[1749935180861,0.79719,2507.9,2507.8,0.79717]
[1749935181163,1.47745,2508.0,2507.9,0.79717]
[1749935181360,0.06809268,2508.1,2508.0,0.79714]
[1749935181569,0.79709,2508.2,2508.1,0.79711]
[1749935182064,0.79709,2508.2,2508.1,1.48341]
[1749935182768,0.79711,2508.1,2508.0,24.528]
[1749935182964,0.79717,2507.9,2507.8,0.6863]
[1749935183164,0.6354,2508.1,2507.7,6.36]
[1749935183165,0.7972,2507.8,2507.7,6.36]
[1749935183768,0.7972,2507.8,2507.7,7.15724]
[1749935184971,0.7972,2507.9,2507.8,0.79717]
[1749935185679,0.79724,2507.8,2507.7,0.79721]
[1749935186273,0.79719,2507.9,2507.8,0.79717]
[1749935186473,4.00497,2508.0,2507.9,0.79717]
[1749935186771,3.2078,2508.0,2507.9,25.35617]
[1749935187363,3.2078,2508.0,2507.9,26.65507]
[1749935187570,4.00494,2508.0,2507.9,26.65507]
[1749935188273,0.79717,2507.9,2507.8,7.0123]
[1749935188471,0.79717,2507.9,2507.8,31.5803]
[1749935188772,4.00496,2508.0,2507.9,0.79717]
[1749935188966,0.79717,2507.9,2507.8,32.37749]
[1749935189374,1.89983682,2507.9,2507.8,32.37749]
[1749935191473,1.89983682,2507.9,2507.8,31.5803]
[1749935192069,1.10266682,2507.9,2507.8,32.3775]
[1749935192968,1.89983682,2507.9,2507.8,32.3775]
[1749935193274,1.10266682,2507.9,2507.8,32.3775]
[1749935193977,1.62296682,2507.9,2507.8,32.3775]
[1749935194675,0.5203,2507.9,2507.8,35.5853]
[1749935195775,7.93643705,2510.0,2507.8,39.7881]
[1749935195776,2.3818244,2508.9,2507.8,39.7881]
[1749935196079,3.2078,2509.1,2509.0,0.79682]
[1749935196377,1.10264236,2509.1,2509.0,25.37082]
[1749935196578,3.2078,2509.5,2509.0,24.574]
[1749935196780,0.79673,2509.3,2509.1,0.79679]
[1749935196980,0.79673,2509.3,2509.2,24.581]
[1749935197278,1.89772439,2509.4,2509.2,25.37776]
[1749935197473,1.10100439,2509.3,2509.2,25.37776]
[1749935197674,0.79672,2509.4,2509.2,25.37776]
[1749935197878,0.79672,2509.4,2509.2,24.581]
[1749935198080,0.00398468,2509.5,2509.4,0.7967]
[1749935198271,1.10399145,2509.5,2509.4,0.7967]
[1749935198477,2.11425145,2509.5,2509.3,0.79672]
[1749935198775,1.60138468,2509.5,2509.4,0.7967]
[1749935199375,2.39806468,2509.5,2509.3,0.79671]
[1749935199676,2.39806468,2509.5,2509.4,0.7967]
[1749935200778,1.15378468,2509.5,2509.4,0.7967]
[1749935201482,0.94018468,2509.5,2509.4,0.7967]
[1749935201677,1.73684468,2509.5,2509.3,0.79672]
[1749935201983,0.80064468,2509.5,2509.3,0.79672]
[1749935202282,0.80064468,2509.5,2509.4,0.7967]